bitfinex/quotes_SOLUSD_20251201
["timestamp","ask_amount","ask_price","bid_price","bid_amount"]
[1764561899519,8.63033741,126.95,126.92,72.87872772]
[1764561899721,8.63033741,126.96,126.92,72.87872772]
[1764561899921,8.63033741,126.96,126.93,0.67]
[1764561900315,8.63033741,126.96,126.93,8.54792594]
[1764561900639,15.81623661,126.97,126.93,69.37792594]
[1764561900837,7.87558224,126.98,126.94,4.17]
[1764561901023,15.81591965,126.98,126.94,4.17]
[1764561901225,7.94033741,126.97,126.94,3.5]
[1764561901422,8.63033741,126.97,126.94,4.17]
[1764561901735,8.63033741,126.97,126.94,3.5]
[1764561902127,7.94033741,126.96,126.94,11.37735251]
[1764561902327,8.5660032,126.97,126.94,12.04735251]
[1764561902520,16.50634061,126.97,126.94,12.04735251]
[1764561902729,16.50634061,126.97,126.94,11.37735251]
[1764561904439,15.81634061,126.97,126.94,11.37735251]
[1764561904627,7.8753864,126.98,126.95,0.67]
[1764561904832,4.19,127.0,126.95,62.17]
[1764561904833,12.13033741,127.0,126.95,62.17]
[1764561905030,12.06401613,127.0,126.96,0.67]
[1764561905339,12.06401613,127.0,126.96,4.17]
[1764561905544,8.63033741,126.99,126.96,3.5]
[1764561905750,8.63033741,126.99,126.96,4.17]
[1764561905944,11.37401613,127.0,126.96,65.67]
[1764561905945,19.31435354,127.0,126.96,65.67]
[1764561906239,15.81356988,127.02,126.97,16.978864]
[1764561906444,10.73304484,127.02,126.98,3.5]
[1764561906743,2.85981237,127.03,126.98,73.54476788]
[1764561907045,3.54981237,127.02,126.98,73.54476788]
[1764561907555,2.85981237,126.99,126.97,16.308864]
[1764561908061,0.69,126.98,126.94,165.2]
[1764561908343,7.94942193,126.97,126.94,61.5]
[1764561908867,7.94942193,126.96,126.93,65.67]
[1764561909046,8.63942193,126.97,126.93,4.17]
[1764561909254,16.51546062,126.97,126.94,0.67]
[1764561910640,16.51546062,126.97,126.93,11.37810753]
[1764561910838,16.51546062,126.97,126.94,0.67]
[1764561911041,16.51546062,126.97,126.93,11.37810753]
[1764561911042,16.51546062,126.97,126.93,3.5]
[1764561911226,16.51546062,126.97,126.93,4.17]
[1764561911426,16.51546062,126.97,126.93,11.37814287]
[1764561911639,8.63942193,126.97,126.94,0.67]
[1764561912223,16.515333,126.97,126.94,0.67]
[1764561912422,16.515333,126.97,126.94,62.17]
[1764561912619,16.515333,126.97,126.94,61.5]
[1764561912825,16.515333,126.97,126.94,62.17]
[1764561913446,0.69,126.97,126.94,62.17]
[1764561913644,7.94942193,126.95,126.94,61.5]
[1764561913847,7.94942193,126.95,126.91,61.50000001]
[1764561914043,7.87600049,126.97,126.91,1e-08]
[1764561914247,0.69,126.97,126.92,0.67]
[1764561914754,15.82591846,126.96,126.92,0.67]
[1764561914953,16.51549176,126.97,126.92,0.67]
[1764561915267,20.01549176,126.97,126.92,0.67]
[1764561915740,7.94942193,126.96,126.92,0.67]
[1764561915938,7.94942193,126.95,126.91,81.30886401]
[1764561916154,7.94942193,126.94,126.91,77.80886401]
[1764561916383,8.63942193,126.95,126.91,78.47886401]
[1764561916741,8.56773751,126.94,126.91,1e-08]
[1764561916941,7.94942193,126.92,126.91,1e-08]
[1764561917438,8.63942193,126.92,126.91,1e-08]
[1764561917648,7.94942193,126.92,126.91,1e-08]
[1764561919367,15.82840081,126.92,126.91,1e-08]
[1764561921157,16.51840081,126.92,126.91,1e-08]
[1764561921366,16.51840081,126.92,126.91,61.50000001]
[1764561923161,16.51840081,126.92,126.91,1e-08]
[1764561927244,16.51840081,126.92,126.91,61.50000001]
[1764561927442,8.56897888,126.92,126.91,61.50000001]
[1764561927760,16.51840081,126.92,126.91,61.50000001]
[1764561928456,16.51840081,126.92,126.87,0.1]
[1764561928457,8.80994492,126.91,126.87,0.1]
[1764561928657,2.86631553,126.88,126.87,0.1]
[1764561929133,12.37626045,126.88,126.87,0.1]
[1764561929340,8.80994492,126.87,126.8,8.55617935]
[1764561929640,2.86631553,126.81,126.79,0.1]
[1764561930151,2.86631553,126.81,126.79,0.77]
[1764561930332,2.86631553,126.8,126.79,0.1]
[1764561931736,10.75275086,126.8,126.79,0.1]
[1764561932447,15.85802911,126.8,126.79,0.1]
[1764561932835,7.97159378,126.8,126.79,0.1]
[1764561933571,15.85802911,126.8,126.79,0.1]
[1764561933958,0.7,126.82,126.79,0.1]
[1764561934166,7.97159378,126.81,126.79,0.77]
[1764561935069,11.47159378,126.82,126.79,0.77]
[1764561936848,7.97159378,126.81,126.79,0.77]
[1764561937359,7.97159378,126.8,126.79,0.1]
[1764561937566,7.97159378,126.81,126.79,0.1]
[1764561938152,7.97159378,126.82,126.79,0.77]
[1764561938347,0.7,126.84,126.8,16.308864]
[1764561938348,12.48253235,126.84,126.8,16.308864]
[1764561938586,23.86623224,126.85,126.81,0.67]
[1764561938899,12.48253235,126.84,126.81,0.67]
[1764561939170,12.48253235,126.83,126.8,16.308864]
[1764561939368,12.48253235,126.83,126.8,16.978864]
[1764561939574,12.48253235,126.82,126.8,16.978864]
[1764561939971,12.48253235,126.82,126.8,0.67]
[1764561940466,12.48253235,126.82,126.79,0.1]
[1764561940650,12.48253235,126.82,126.79,0.77]
[1764561940850,12.48253235,126.82,126.79,8.65698015]
[1764561941256,21.06744391,126.83,126.79,8.65698015]
[1764561941769,12.48253235,126.82,126.79,8.65698015]
[1764561941955,12.48253235,126.82,126.79,7.98698015]
[1764561942161,12.48253235,126.82,126.79,8.65698015]
[1764561942470,8.58557644,126.82,126.79,0.77]
[1764561942772,12.48253235,126.81,126.79,0.77]
[1764561944170,21.06810879,126.82,126.79,0.77]
[1764561945780,13.18253235,126.81,126.79,0.1]
[1764561946084,12.48253235,126.8,126.79,0.1]
[1764561947391,21.06896768,126.8,126.79,0.1]
[1764561947755,20.36896768,126.8,126.79,0.1]
[1764561948084,21.06896768,126.8,126.79,0.1]
[1764561948582,20.36896768,126.8,126.79,0.1]
[1764561949175,21.06896768,126.8,126.79,0.1]
[1764561949376,8.58643533,126.8,126.79,0.1]
[1764561949573,7.88643533,126.8,126.79,0.1]
[1764561949871,23.91451766,126.82,126.79,62.27]
[1764561949872,7.88563447,126.82,126.79,62.27]
[1764561950073,23.86722776,126.83,126.8,0.67]
[1764561950272,20.36722776,126.83,126.8,0.67]
[1764561950470,21.06722776,126.83,126.8,0.67]
[1764561953965,21.06722776,126.83,126.8,62.17]
[1764561954284,21.06722776,126.83,126.8,0.67]
[1764561954466,13.06641976,126.83,126.8,0.67]
[1764561955068,0.7,126.83,126.8,0.67]
[1764561956285,8.58474861,126.83,126.8,0.67]
[1764561956865,0.7,126.83,126.8,0.67]
[1764561957472,7.88457023,126.83,126.8,0.67]
[1764561958081,8.59457023,126.83,126.8,0.67]
[1764561958985,0.71,126.82,126.79,0.82]
[1764561959388,0.71,126.82,126.79,8.70705364]
[1764561960289,12.36629458,126.83,126.79,8.70705364]
[1764561960290,13.07629458,126.83,126.79,8.70705364]
[1764561960791,35.57604857,126.84,126.8,0.72]
[1764561960983,36.28604857,126.84,126.8,0.72]
[1764561961591,36.28604857,126.84,126.81,7.98172435]
[1764561961592,7.88394828,126.84,126.81,7.98172435]
[1764561961791,7.88394828,126.84,126.82,4.48172435]
[1764561962092,7.88351465,126.85,126.82,5.20172435]
[1764561962289,8.59351465,126.85,126.81,3.5]
[1764561962597,7.88351465,126.85,126.82,0.72]
[1764561962777,7.88263762,126.87,126.82,0.72]
[1764561962977,8.59263762,126.87,126.82,5.20172435]
[1764561963380,8.59263762,126.87,126.83,0.72]
[1764561963779,0.71,126.86,126.83,0.72]
[1764561963982,13.07436197,126.87,126.83,0.72]
[1764561964396,13.07436197,126.87,126.83,70.10456989]
[1764561965595,5.19172435,126.86,126.83,61.5]
[1764561965802,7.88151537,126.88,126.84,5.20172435]
[1764561966092,7.88090588,126.89,126.85,4.48172435]
[1764561966397,8.59090588,126.89,126.85,66.70172435]
[1764561966884,8.59090588,126.89,126.85,62.22]
[1764561967196,8.59090588,126.89,126.85,70.10298048]
[1764561968099,8.59090588,126.89,126.86,0.72]
[1764561968490,8.59090588,126.89,126.85,70.10298048]
[1764561969278,12.36263023,126.89,126.85,70.10298048]
[1764561969579,0.71,126.88,126.85,70.10298048]
[1764561970481,13.07343558,126.88,126.85,61.5]
[1764561970988,0.71,126.87,126.85,61.5]
[1764561971378,4.48172435,126.88,126.85,69.38288164]
[1764561971588,5.19172435,126.91,126.87,7.88208402]
[1764561971782,16.57141413,126.91,126.87,7.88208402]
[1764561972104,5.19172435,126.9,126.86,8.6025482]
[1764561972485,0.71,126.89,126.86,8.6025482]
[1764561973279,16.57145569,126.91,126.87,0.72]
[1764561973474,0.71,126.9,126.87,0.72]
[1764561974400,13.07206667,126.9,126.87,0.72]
[1764561974807,0.71,126.9,126.87,70.10207694]
[1764561975323,4.48172435,126.92,126.87,62.22]
[1764561975484,13.070426,126.93,126.88,5.20172435]
[1764561975680,8.58870165,126.93,126.89,0.72]
[1764561975885,16.308864,126.95,126.9,7.96172435]
[1764561975886,0.71,126.95,126.9,7.96172435]
[1764561976189,4.48172435,126.95,126.9,64.98]
[1764561976495,3.5,126.97,126.9,61.5]
[1764561976496,4.48172435,126.93,126.9,61.5]
[1764561976879,0.71,126.93,126.9,61.5]
[1764561977301,0.71,126.93,126.9,69.38021005]
[1764561977598,4.48172435,126.94,126.9,69.38021005]
[1764561977800,0.71,126.96,126.91,5.20172435]
[1764561978005,33.55992914,127.04,126.91,5.20172435]
[1764561978006,0.91,127.0,126.94,20.79058835]
[1764561978202,0.91,127.0,126.94,85.79058835]
[1764561978203,4.48172435,126.99,126.94,85.79058835]
[1764561978499,13.0665369,126.99,126.95,0.72]
[1764561978711,0.71,126.98,126.95,0.72]
[1764561979014,0.71,126.98,126.94,89.1864156]
[1764561979182,0.71,126.98,126.94,89.9064156]
[1764561979500,4.48172435,126.96,126.94,61.5]
[1764561979701,4.48172435,126.96,126.92,11.37855343]
[1764561979905,5.19172435,126.96,126.92,12.09855343]
[1764561980099,0.71,126.96,126.93,0.72]
[1764561981688,0.71,126.96,126.92,12.09855343]
[1764561981888,4.48172435,126.95,126.92,7.87855343]
[1764561982296,5.19172435,126.95,126.92,7.87855343]
[1764561982490,0.71,126.95,126.92,7.87855343]
[1764561982684,5.19172435,126.95,126.92,7.87855343]
[1764561982903,8.58701947,126.96,126.92,8.59855343]
[1764561983109,13.06874382,126.96,126.92,8.59855343]
[1764561983585,12.35874382,126.96,126.92,8.59855343]
[1764561983785,5.19172435,126.95,126.92,7.87855343]
[1764561983986,5.19172435,126.95,126.92,61.5]
[1764561983987,4.48172435,126.94,126.92,61.5]
[1764561984182,5.19172435,126.94,126.92,61.5]
[1764561984402,7.87701947,126.96,126.88,65.0]
[1764561984403,5.19172435,126.93,126.88,65.0]
[1764561984605,4.48172435,126.91,126.87,69.38195929]
[1764561985114,0.68,126.9,126.87,69.38195929]
[1764561985318,5.16172435,126.92,126.88,0.7]
[1764561985605,4.48172435,126.9,126.86,72.88246583]
[1764561985812,0.68,126.9,126.86,73.58246583]
[1764561986001,4.48172435,126.91,126.87,0.7]
[1764561986207,5.16172435,126.91,126.87,0.7]
[1764561986394,0.68,126.9,126.86,77.36419018]
[1764561986598,5.16172435,126.9,126.86,78.06419018]
[1764561986791,5.16172435,126.9,126.86,73.58246583]
[1764561986992,13.04202616,126.9,126.86,73.58246583]
[1764561987512,4.48172435,126.88,126.85,16.308864]
[1764561987688,4.48172435,126.87,126.83,85.41108554]
[1764561987891,5.16172435,126.88,126.83,106.20167389]
[1764561988104,12.36141312,126.91,126.86,4.48172435]
[1764561988414,12.36141312,126.91,126.86,69.48172435]
[1764561988712,13.04141312,126.91,126.87,0.7]
[1764561989689,4.48172435,126.89,126.86,65.0]
[1764561990010,4.48172435,126.89,126.86,61.5]
[1764561990209,0.68,126.89,126.86,61.5]
[1764561990413,0.68,126.89,126.86,62.2]
[1764561990600,0.68,126.89,126.86,61.5]
[1764561990601,5.16172435,126.89,126.86,61.5]
[1764561991604,13.04262877,126.89,126.86,61.5]
[1764561991809,12.36217794,126.9,126.86,70.08269882]
[1764561992017,13.04217794,126.9,126.86,62.2]
[1764561992393,8.56045359,126.9,126.86,74.56413176]
[1764561992600,8.56045359,126.9,126.86,78.06413176]
[1764561993097,8.56045359,126.9,126.86,73.58240741]
[1764561993296,0.68,126.9,126.87,0.7]
[1764561993714,13.04146029,126.91,126.87,8.58188683]
[1764561994088,5.16172435,126.91,126.87,8.58188683]
[1764561994489,5.16172435,126.9,126.87,7.88188683]
[1764561995814,4.48172435,126.91,126.88,0.7]
[1764561996014,5.16172435,126.91,126.88,0.7]
[1764561996221,12.36070323,126.92,126.88,0.7]
[1764561996394,5.16172435,126.93,126.88,70.18172435]
[1764561996599,5.16172435,126.93,126.88,65.7]
[1764561996600,4.48172435,126.92,126.88,65.7]
[1764561996815,5.16172435,126.92,126.89,0.7]
[1764561996997,5.16172435,126.92,126.89,62.2]
[1764561997196,5.16172435,126.92,126.89,61.5]
[1764561997816,5.16172435,126.92,126.89,70.08063928]
[1764561998118,13.04079648,126.92,126.89,62.2]
[1764561998620,0.68,126.91,126.89,61.5]
[1764561999721,5.16172435,126.91,126.89,61.5]
[1764562000225,12.36079648,126.92,126.89,61.5]
[1764562000403,1.99999999,126.99,126.89,61.5]
[1764562000404,3.5429329,126.95,126.9,20.508864]
[1764562000720,0.68,126.95,126.91,2.8629329]
[1764562000926,0.68,126.95,126.91,3.5629329]
[1764562001502,3.5429329,126.95,126.91,0.7]
[1764562001704,3.5429329,126.95,126.91,8.57910727]
[1764562002517,0.68,126.95,126.92,0.7]
[1764562003105,0.68,126.95,126.92,3.5629329]
[1764562003511,11.42010146,126.95,126.92,7.87852192]
[1764562004231,11.42010146,126.95,126.92,8.57852192]
[1764562004414,8.55716856,126.95,126.92,8.57852192]
[1764562007622,8.55716856,126.95,126.91,64.3629329]
[1764562007623,3.5429329,126.94,126.91,69.37950337]
[1764562008143,0.68,126.94,126.91,69.37950337]
[1764562008319,10.74010146,126.95,126.92,0.7]
[1764562008517,11.42010146,126.95,126.92,0.7]
[1764562009045,11.42010146,126.95,126.91,70.07950337]
[1764562010813,11.42010146,126.95,126.91,62.2]
[1764562011013,0.68,126.94,126.91,62.2]
[1764562011434,0.68,126.94,126.91,70.07953107]
[1764562011628,0.68,126.94,126.91,61.5]
[1764562011826,3.5429329,126.94,126.91,69.37937835]
[1764562012737,11.42095175,126.94,126.91,61.5]
[1764562012942,0.68,126.93,126.91,61.5]
[1764562013336,0.68,126.93,126.91,69.37953928]
[1764562013727,0.68,126.94,126.91,70.07953928]
[1764562014038,11.42027231,126.95,126.91,70.07953928]
[1764562014338,0.68,126.94,126.91,70.07953928]
[1764562014845,14.91968928,126.96,126.92,0.7]
[1764562015342,0.68,126.95,126.92,0.7]
[1764562015637,0.68,126.95,126.91,72.24247218]
[1764562015815,0.68,126.95,126.91,72.91247218]
[1764562016017,0.68,126.95,126.92,0.67]
[1764562016341,0.68,126.95,126.91,72.24247218]
[1764562016525,0.68,126.95,126.92,61.5]
[1764562016939,11.42029507,126.95,126.92,61.5]
[1764562017645,0.68,126.95,126.92,69.37895227]
[1764562019236,8.55714527,126.95,126.92,69.37895227]
[1764562019739,0.66,126.94,126.92,61.5]
[1764562021239,2.8629329,126.96,126.93,0.67]
[1764562021549,33.90548565,126.99,126.94,2.8629329]
[1764562021750,0.66,126.98,126.94,64.3629329]
[1764562022120,0.66,126.98,126.95,0.67]
[1764562022323,3.5229329,126.98,126.94,61.5]
[1764562022519,3.5229329,126.98,126.94,70.04718864]
[1764562022741,0.66,126.97,126.94,70.04718864]
[1764562023534,2.8629329,126.96,126.94,69.37718864]
[1764562023727,0.66,126.96,126.94,69.37718864]
[1764562024849,2.8629329,126.95,126.94,61.5]
[1764562025144,11.39947717,126.96,126.94,61.5]
[1764562025345,0.66,126.95,126.94,61.5]
[1764562027760,0.66,126.98,126.95,62.17]
[1764562027930,2.8629329,126.99,126.95,72.90968492]
[1764562027931,8.53474472,126.99,126.95,72.90968492]
[1764562028250,3.5229329,126.98,126.95,69.37675202]
[1764562028632,0.66,126.98,126.95,70.04675202]
[1764562030628,11.39767762,126.99,126.95,70.04675202]
[1764562031828,0.66,126.99,126.95,72.90968492]
[1764562032033,0.2,127.0,126.96,23.3217969]
[1764562032441,0.2,127.0,126.97,3.5329329]
[1764562032836,0.2,127.0,126.97,65.0329329]
[1764562033049,0.2,127.0,126.97,62.17]
[1764562033232,0.86,127.0,126.97,61.5]
[1764562033427,11.59698452,127.0,126.97,61.5]
[1764562033632,3.7229329,127.0,126.97,62.17]
[1764562034132,3.7229329,127.0,126.97,70.04581889]
[1764562034459,0.86,127.0,126.97,70.04581889]
[1764562034959,0.66,126.99,126.97,61.5]
[1764562035156,11.59713696,127.0,126.97,62.17]
[1764562035337,8.73420406,127.0,126.97,62.17]
[1764562035536,0.86,127.0,126.97,70.04574374]
[1764562036929,10.93720743,127.0,126.97,61.5]
[1764562037129,0.66,126.99,126.96,81.958864]
[1764562037854,11.59720743,127.0,126.96,81.958864]
[1764562038352,11.59720743,127.0,126.96,92.69825569]
[1764562038861,11.59720743,127.0,126.96,89.83532279]
[1764562039057,11.59720743,127.0,126.96,92.69825569]
[1764562039237,0.86,127.0,126.97,8.54571089]
[1764562039446,0.2,127.0,126.97,11.40864379]
[1764562039746,0.2,127.0,126.98,0.67]
[1764562039952,0.86,127.0,126.98,61.5]
[1764562041489,0.2,127.0,126.99,0.67]
[1764562041777,0.2,127.0,126.98,70.04514636]
[1764562041984,0.2,127.0,126.98,72.90807926]
[1764562043169,0.2,127.0,126.98,176.60807926]
[1764562044165,0.66,127.04,126.99,19.8417969]
[1764562044467,7.87153652,127.04,127.01,2.8629329]
[1764562044667,0.66,127.05,127.01,64.1629329]
[1764562044878,10.73281666,127.07,127.02,7.0429329]
[1764562045170,7.86988376,127.07,127.03,2.8629329]
[1764562045367,0.66,127.06,127.03,3.5629329]
[1764562045569,11.39281666,127.07,127.03,0.7]
[1764562045748,10.73281666,127.07,127.03,0.7]
[1764562045948,2.8629329,127.05,127.02,64.78]
[1764562046159,2.8629329,127.03,127.02,61.3]
[1764562046363,2.8629329,127.03,127.0,61.3]
[1764562046670,3.5529329,127.03,127.0,62.02]
[1764562047248,3.5529329,127.03,127.0,61.3]
[1764562047453,0.69,127.02,127.0,61.3]
[1764562048575,0.69,127.02,126.99,24.9029346]
[1764562048878,3.5529329,127.02,126.99,69.1740706]
[1764562049582,0.69,127.01,126.99,69.1740706]
[1764562050069,0.69,127.01,126.99,61.3]
[1764562050786,10.73586315,127.02,126.99,62.02]
[1764562050970,11.42586315,127.02,126.99,62.02]
[1764562051164,11.42586315,127.02,126.99,61.3]
[1764562051557,2.8629329,127.03,127.0,0.72]
[1764562051769,11.42521912,127.03,126.99,64.8829329]
[1764562052079,0.69,127.02,126.99,168.5829329]
[1764562052280,3.5529329,127.02,126.99,165.0]
[1764562052458,8.56292453,127.02,126.99,165.0]
[1764562053391,8.56292453,127.02,126.99,165.72]
[1764562053988,30.41779728,127.02,126.99,165.0]
[1764562054169,0.69,127.01,126.99,165.0]
[1764562054503,8.56374438,127.01,126.99,165.0]
[1764562055289,11.42667728,127.01,126.99,165.0]
[1764562055666,3.5529329,127.0,126.99,61.3]
[1764562055866,3.5529329,127.0,126.96,61.3]
[1764562056069,2.8629329,126.98,126.96,61.3]
[1764562056287,2.8629329,126.97,126.96,61.3]
[1764562056510,7.87649653,126.96,126.94,61.3]
[1764562056670,8.56649653,126.96,126.94,61.3]
[1764562058886,3.5529329,126.95,126.94,61.3]
[1764562059084,3.5529329,126.95,126.9,3.48]
[1764562059282,3.5529329,126.95,126.9,68.3629329]
[1764562059468,3.5529329,126.95,126.91,0.72]
[1764562059671,7.87773751,126.94,126.91,0.72]
[1764562059870,8.56773751,126.94,126.91,0.72]
[1764562061388,14.90977543,126.96,126.91,11.46248857]
[1764562061771,0.69,126.95,126.92,8.59897009]
[1764562062168,14.90977543,126.96,126.92,8.59897009]
[1764562062372,7.87613703,126.97,126.94,4.47113151]
[1764562062673,12.34664987,126.98,126.94,65.77113151]
[1764562062883,13.03664987,126.98,126.94,66.49113151]
[1764562063887,13.03664987,126.98,126.94,74.36876151]
[1764562064473,12.34664987,126.98,126.95,0.72]
[1764562064796,13.03478874,127.01,126.97,4.47113151]
[1764562064999,13.03478874,127.01,126.97,69.25113151]
[1764562065183,13.03478874,127.01,126.98,0.72]
[1764562065494,8.56365723,127.01,126.98,0.72]
[1764562065877,8.56365723,127.01,126.99,4.47113151]
[1764562066189,8.56277594,127.02,126.99,4.47113151]
[1764562067084,7.87277594,127.02,127.0,0.72]
[1764562067390,7.87277594,127.02,127.0,66.49113151]
[1764562067594,7.87277594,127.02,127.01,4.47113151]
[1764562068096,7.87277594,127.02,127.0,65.77113151]
[1764562069575,7.87215618,127.03,127.0,66.49113151]
[1764562069781,7.87215618,127.03,127.01,4.47113151]
[1764562070097,8.56215618,127.03,127.0,65.77113151]
[1764562070684,24.83712016,127.06,127.02,4.47113151]
[1764562070886,0.69,127.05,127.02,4.47113151]
[1764562071081,0.69,127.05,127.01,4.47113151]
[1764562072292,8.56107394,127.05,127.01,4.47113151]
[1764562072471,8.56066263,127.06,127.02,5.19113151]
[1764562072877,0.69,127.06,127.02,5.19113151]
[1764562073199,0.89,127.09,127.05,4.47113151]
[1764562073395,0.89,127.09,127.06,4.47113151]
[1764562073900,0.2,127.09,127.06,4.47113151]
[1764562074102,0.69,127.08,127.05,3.48]
[1764562074283,0.89,127.09,127.06,4.47113151]
[1764562074486,0.89,127.09,127.06,12.34136821]
[1764562075284,0.89,127.09,127.06,4.47113151]
[1764562076705,0.89,127.09,127.06,12.34138563]
[1764562077505,0.66,127.08,127.05,3.48]
[1764562077800,5.33113151,127.09,127.05,16.5120122]
[1764562078575,0.86,127.09,127.05,15.8220122]
[1764562078782,0.86,127.09,127.06,0.69]
[1764562079301,0.66,127.08,127.05,177.04088069]
[1764562079499,0.2,127.09,127.07,4.47113151]
[1764562079701,0.2,127.09,127.08,7.95113151]
[1764562079997,0.2,127.09,127.08,75.07226302]
[1764562080783,0.2,127.09,127.08,82.94132188]
[1764562081705,0.2,127.09,127.08,96.22239831]
[1764562082506,0.2,127.09,127.08,99.25018588]
[1764562082686,0.2,127.09,127.08,94.77905437]
[1764562082887,0.2,127.09,127.08,7.86905886]
[1764562082888,0.86,127.09,127.08,7.86905886]
[1764562083084,4.67113151,127.09,127.06,78.47108303]
[1764562083288,5.13113151,127.08,127.06,13.00108303]
[1764562083494,4.47113151,127.07,127.04,72.65123108]
[1764562083692,5.13113151,127.07,127.04,7.87123108]
[1764562083899,0.66,127.06,127.04,7.87123108]
[1764562084406,4.47113151,127.05,127.02,7.87242683]
[1764562084612,0.66,127.06,127.02,8.56242683]
[1764562084920,8.53087132,127.06,127.02,7.87242683]
[1764562085205,13.00200283,127.06,127.02,8.56242683]
[1764562085395,0.66,127.05,127.02,8.56242683]
[1764562087291,0.66,127.05,127.02,13.03355834]
[1764562089107,0.66,127.05,127.02,12.34355834]
[1764562089314,0.66,127.05,127.02,73.64355834]
[1764562090104,8.53099656,127.05,127.02,73.64355834]
[1764562090299,13.00212807,127.05,127.01,61.3]
[1764562090498,0.66,127.04,127.01,61.3]
[1764562090894,3.47113151,127.02,126.99,23.1540274]
[1764562091113,3.47113151,127.02,126.96,7.87625719]
[1764562091114,4.47113151,127.02,126.97,4.47113151]
[1764562091424,0.66,127.01,126.97,4.47113151]
[1764562091596,0.66,127.01,126.97,5.16113151]
[1764562092313,0.66,127.01,126.97,13.03649752]
[1764562092613,0.66,127.01,126.98,4.47113151]
[1764562093625,8.53347776,127.01,126.98,4.47113151]
[1764562093828,4.47113151,126.99,126.94,4.47113151]
[1764562094003,4.47113151,126.97,126.93,7.87298699]
[1764562094330,12.34824848,126.95,126.91,4.47113151]
[1764562094617,7.87711697,126.95,126.92,4.47113151]
[1764562094792,8.53711697,126.95,126.92,4.47113151]
[1764562094992,0.66,126.94,126.92,4.47113151]
[1764562095725,0.66,126.94,126.91,4.47113151]
[1764562096297,5.13113151,126.94,126.9,29.35004575]
[1764562096493,13.1228902,126.94,126.9,28.7717542]
[1764562096698,13.1228902,126.93,126.89,15.9428902]
[1764562096913,13.1228902,126.93,126.89,24.51367775]
[1764562097523,13.1228902,126.92,126.89,3.48]
[1764562097822,13.1228902,126.92,126.89,0.69]
[1764562097999,0.66,126.91,126.87,16.6328902]
[1764562098323,0.66,126.91,126.87,24.51486174]
[1764562099212,21.00273329,126.91,126.87,3.48]
[1764562099622,0.66,126.9,126.87,3.48]
[1764562100298,21.00273329,126.91,126.87,4.17]
[1764562100503,0.66,126.9,126.87,4.17]
[1764562103808,7.87984309,126.91,126.88,12.4628902]
[1764562104033,7.87984309,126.91,126.88,13.1528902]
[1764562104230,7.87984309,126.91,126.88,165.89]
[1764562104616,8.53897888,126.92,126.88,178.3528902]
[1764562104818,21.00186908,126.92,126.88,178.3528902]
[1764562105014,13.1728902,126.91,126.88,165.2]
[1764562105415,13.1728902,126.9,126.88,165.2]
[1764562105730,13.1728902,126.9,126.88,61.5]
[1764562105915,0.71,126.89,126.88,61.5]
[1764562106540,20.34339574,126.9,126.88,61.5]
[1764562106736,21.05339574,126.9,126.88,61.5]
[1764562107212,0.71,126.89,126.88,61.5]
[1764562107533,20.34339574,126.9,126.88,61.5]
[1764562107741,0.71,126.89,126.88,61.5]
[1764562110135,20.34270409,126.91,126.88,62.18]
[1764562110318,21.05270409,126.91,126.88,62.18]
[1764562110934,0.71,126.93,126.89,13.1428902]
[1764562111247,7.87835815,126.93,126.9,13.1428902]
[1764562111627,8.58791609,126.94,126.91,13.1428902]
[1764562111819,0.71,126.94,126.91,74.6428902]
[1764562112136,0.71,126.94,126.91,61.5]
[1764562112633,8.58787885,126.94,126.91,61.5]
[1764562113134,0.71,126.93,126.91,61.5]
[1764562113734,21.05076905,126.94,126.91,61.5]
[1764562114233,8.58787885,126.94,126.91,61.5]
[1764562114836,21.0502534,126.95,126.91,82.52234872]
[1764562115016,20.3402534,126.95,126.91,82.52234872]
[1764562115226,0.71,126.94,126.91,82.52234872]
[1764562115438,20.3402534,126.95,126.91,82.52234872]